fUSD/lending_fUSD_20260129
["ID","MTS","AMOUNT","RATE_DAILY","PERIOD"]
[404017548,1769727048090,-151.0,0.00016959,2]
[404017549,1769727048099,-151.0,0.00016959,2]
[404017550,1769727048110,-151.0,0.00016959,2]
[404017551,1769727048119,-151.0,0.00016959,2]
[404017552,1769727048128,-151.0,0.00016959,2]
[404017553,1769727048138,-151.0,0.00016959,2]
[404017554,1769727048147,-153.966832,0.00016959,2]
[404017555,1769727048158,-695.225747,0.00016959,2]
[404017556,1769727048167,-695.225747,0.00016959,2]
[404017557,1769727048176,-695.225747,0.00016959,2]
[404017558,1769727048186,-695.225747,0.00016959,2]
[404017559,1769727048196,-151.0,0.00016959,2]
[404017560,1769727048206,-151.0,0.00016959,2]
[404017561,1769727048215,-558.58231824,0.00016959,2]
[404017562,1769727048225,-706.738703,0.00016959,2]
[404017563,1769727048234,-706.738703,0.00016959,2]
[404017564,1769727048243,-706.738703,0.00016959,2]
[404017565,1769727048252,-706.738703,0.00016959,2]
[404017566,1769727048261,-706.738703,0.00016959,2]
[404017567,1769727048270,-706.738703,0.00016959,2]
[404017568,1769727048279,-706.738703,0.00016959,2]
[404017569,1769727048289,-706.738703,0.00016959,2]
[404017570,1769727048298,-1111.400838,0.00016959,2]
[404017571,1769727048307,-1111.400838,0.00016959,2]
[404017572,1769727048316,-1111.400838,0.00016959,2]
[404017573,1769727048326,-1111.400838,0.00016959,2]
[404017574,1769727048334,-1111.400838,0.00016959,2]
[404017575,1769727048344,-1111.400838,0.00016959,2]
[404017576,1769727048352,-1111.400838,0.00016959,2]
[404017577,1769727048361,-1111.400838,0.00016959,2]
[404017578,1769727048371,-180.195627,0.00016959,2]
[404017579,1769727048381,-180.195627,0.00016959,2]
[404017580,1769727048390,-180.195627,0.00016959,2]
[404017581,1769727048400,-180.195627,0.00016959,2]
[404017582,1769727048409,-180.195627,0.00016959,2]
[404017583,1769727048418,-180.195627,0.00016959,2]
[404017584,1769727048427,-180.195627,0.00016959,2]
[404017585,1769727048435,-180.195627,0.00016959,2]
[404017586,1769727048444,-154.881899,0.00016959,2]
[404017587,1769727048454,-154.881899,0.00016959,2]
[404017588,1769727048463,-154.881899,0.00016959,2]
[404017589,1769727048473,-154.881899,0.00016959,2]
[404017590,1769727048482,-151.0,0.00016959,2]
[404017591,1769727048491,-151.0,0.00016959,2]
[404017592,1769727048500,-585.434506,0.00016959,2]
[404017593,1769727048509,-151.0,0.00016959,2]
[404017594,1769727048518,-585.434506,0.00016959,2]
[404017595,1769727048527,-585.434506,0.00016959,2]
[404017596,1769727048535,-585.434506,0.00016959,2]
[404017597,1769727048544,-16624.46934118,0.0001696,2]
[404017598,1769727048569,-4141.51105221,0.0001696,2]
[404017599,1769727049284,-189.50059607,0.00016089,2]
[404017600,1769727049294,-151.0,0.00016089,2]
[404017601,1769727049304,-8339.81004064,0.0001696,2]
[404017602,1769727049317,-1057.7123853,0.0001696,2]
[404017603,1769727049330,-1361.22,0.0001696,2]
[404017604,1769727049943,-16890.60885116,0.0001696,2]
[404017605,1769727049954,-2817.39999998,0.0001696,2]
[404017606,1769727049965,-3409.55154587,0.0001696,2]
[404017607,1769727050059,-7884.14178657,0.0001696,2]
[404017608,1769727050072,-83418.14782298,0.0001696,2]
[404017609,1769727050084,-17494.96136171,0.0001696,2]
[404017610,1769727050117,-878.15443804,0.0001696,2]
[404017632,1769727945729,4120.75,0.00012372,2]
[404017634,1769728048167,-182.83033632,0.00013829,2]
[404017635,1769728048192,-195.0,0.00013867,2]
[404017636,1769728048215,-265.0,0.00013905,2]
[404017637,1769728048237,-250.0,0.00013917,2]
[404017638,1769728048259,-310.72048062,0.00013929,2]
[404017640,1769728180197,371.54739685,0.00010587,2]
[404017642,1769728231345,-264.0,0.00013834,2]
[404017643,1769728231356,-251.82118686,0.00013904,2]
[404017644,1769728231367,-195.0,0.00013917,2]
[404017645,1769728231377,-189.27951938,0.00013929,2]
[404017646,1769728231388,-500.0,0.00013929,2]
[404017647,1769728231399,-394.52625559,0.00013929,2]
[404017648,1769728231409,-250.0,0.00013967,2]
[404017649,1769728231421,-1200.0,0.00014002,2]
[404017650,1769728231432,-1200.0,0.00014003,2]
[404017651,1769728231442,-300.0,0.00014003,2]
[404017652,1769728231452,-300.0,0.00014003,2]
[404017653,1769728231462,-300.0,0.00014003,2]
[404017654,1769728231472,-300.0,0.00014004,2]
[404017655,1769728231482,-492.43798192,0.00014005,2]
[404017656,1769728231492,-500.0,0.00014005,2]
[404017657,1769728231502,-500.0,0.00014005,2]
[404017658,1769728231512,-500.0,0.00014005,2]
[404017659,1769728231521,-160.9536079,0.00014005,2]
[404017660,1769728231566,-339.0463921,0.00014005,2]
[404017661,1769728231576,-510.98377513,0.00014005,2]
[404017662,1769728231586,-500.0,0.00014005,2]
[404017663,1769728231596,-500.0,0.00014005,2]
[404017664,1769728231605,-151.90815557,0.00014005,2]
[404017665,1769728231618,-348.09184443,0.00014005,2]
[404017666,1769728231628,-0.14421537,0.0001403,2]
[404017667,1769728231644,-499.85578463,0.0001403,2]
[404017668,1769728231654,-150.0,0.00014185,2]
[404017669,1769728231665,-300.0,0.00014185,2]
[404017670,1769728231675,-500.0,0.00014186,2]
[404017671,1769728231685,-509.50804323,0.00014186,2]
[404017672,1769728231696,-504.97053901,0.00014186,2]
[404017673,1769728231706,-311.5682799,0.00014186,2]
[404017674,1769728231718,-188.4317201,0.00014186,2]
[404017675,1769728231728,-164.57,0.00014304,2]
[404017676,1769728231739,-251.82118684,0.00014508,2]
[404017677,1769728231751,-1600.0,0.0001501,2]
[404017678,1769728231762,-408.34,0.00015107,2]
[404017679,1769728231772,-3301.11,0.00015107,2]
[404017680,1769728231781,-251.82118684,0.00015112,2]
[404017681,1769728231791,-620.29022114,0.00015112,2]
[404017682,1769728231801,-150.0,0.00015135,2]
[404017683,1769728231811,-163.68610111,0.00015186,2]
[404017684,1769728231821,-151.0,0.00015193,2]
[404017685,1769728231830,-1000.0,0.00015195,2]
[404017686,1769728231841,-8025.80585758,0.00015196,2]
[404017687,1769728231853,-1917.42030992,0.00015196,2]
[404017688,1769728231892,-3761.27311543,0.00015196,2]
[404017689,1769728231933,-258.92000001,0.00015196,2]
[404017692,1769728231950,-1129.77583328,0.00015196,2]
[404017707,1769728237621,-507.71285999,0.00013764,2]
[404017708,1769728237635,-476.9799995,0.00013764,2]
[404017709,1769728237663,-311.24646046,0.00013764,2]
[404017710,1769728237674,-361.94132306,0.00013764,2]
[404017711,1769728237690,-648.51920599,0.00013764,2]
[404017712,1769728237699,-258.62079401,0.00015196,2]
[404017714,1769728237724,-408.348,0.00015196,2]
[404017719,1769728239588,-1668.2263106,0.00015196,2]
[404017720,1769728239600,-1731.41031661,0.00015196,2]
[404017721,1769728239612,-3101.14109984,0.00015196,2]
[404017722,1769728239770,-1033.83778917,0.00015196,2]
[404017723,1769728239954,-35131.03948976,0.00015196,2]
[404017724,1769728239980,-8714.67495383,0.00015196,2]
[404017725,1769728239993,-8947.21879473,0.00015196,2]
[404017726,1769728240004,-8943.78386462,0.00015196,2]
[404017727,1769728240015,-9077.54866152,0.00015196,2]
[404017728,1769728240027,-8943.84023489,0.00015196,2]
[404017729,1769728240079,-4081.75028324,0.00015196,2]
[404017730,1769728240091,-2384.78114555,0.00015196,2]
[404017744,1769728243407,-348.70533248,0.00015196,2]
[404017745,1769728243421,-541.54300055,0.00015196,2]
[404017746,1769728243433,-464.76347741,0.00015196,2]
[404017747,1769728243566,-34.30805955,0.00015196,2]
[404017748,1769728243577,-881.12122902,0.00015196,2]
[404017749,1769728243591,-3412.62979512,0.00015196,2]
[404017750,1769728243608,-314.25747137,0.00015196,2]
[404017751,1769728243623,-423.95581672,0.00015196,2]
[404017752,1769728243642,-1325.45,0.00015196,2]
[404017753,1769728245583,-8456.6,0.00015196,2]
[404017754,1769728245594,-30651.21686561,0.00015196,2]
[404017755,1769728245606,-151396.94589311,0.00015196,2]
[404017756,1769728245618,-3185.2803191,0.00015196,2]
[404017757,1769728245630,-381020.02312372,0.00015196,2]
[404017758,1769728245641,-5793.42327444,0.00015196,2]
[404017759,1769728245671,-2567.47797704,0.00015196,2]
[404017760,1769728245683,-1473.61697263,0.00015196,2]
[404017762,1769728245695,-9580.4566829,0.00015196,2]
[404017764,1769728245707,-988.49382925,0.00015196,2]
[404017765,1769728245724,-5102.47102718,0.00015196,2]
[404017766,1769728245736,-1236.613284,0.00015196,2]
[404017767,1769728245748,-3841.42738361,0.00015196,2]
[404017768,1769728245761,-882.34862883,0.00015196,2]
[404017769,1769728245774,-6810.24728547,0.00015196,2]
[404017770,1769728245787,-2809.71180005,0.00015196,2]
[404017771,1769728245804,-22437.6933177,0.00015196,2]
[404017774,1769728375140,416.52438959,0.00025989,120]
[404017775,1769728487948,169.01,0.000114,2]
[404017778,1769729139799,881.63,0.00013618,2]
[404017779,1769729140025,881.63,0.00013662,2]
[404017780,1769729161249,1099.63,0.00013538,2]
[404017781,1769729251990,-881.63,0.00013705,2]
[404017782,1769729338043,3528.75,0.00013384,2]
[404017783,1769729373481,-250.0,0.00013727,2]
[404017784,1769729373502,-344.23867281,0.00013735,2]
[404017785,1769729373524,-881.63,0.00013748,2]
[404017786,1769729373546,-881.63,0.00013792,2]
[404017787,1769729373567,-881.63,0.00013835,2]
[404017788,1769729373589,-195.0,0.00013845,2]
[404017789,1769729373614,-881.63,0.00013879,2]
[404017790,1769729373634,-999.65362519,0.00013888,2]
[404017791,1769729404929,-500.34637481,0.00013888,2]
[404017792,1769729404952,-195.0,0.0001389,2]
[404017793,1769729404974,-303.5791788,0.00013891,2]
[404017794,1769729404997,-161.5076,0.00013893,2]
[404017795,1769729427035,-881.63,0.00013922,2]
[404017796,1769729427060,-250.0,0.00013924,2]
[404017797,1769729427086,-600.0,0.00013925,2]
[404017798,1769729427111,-195.0,0.00013925,2]
[404017799,1769729427134,-175.972188,0.00013928,2]
[404017800,1769729427157,-500.0,0.00013929,2]
[404017801,1769729427181,-369.86439863,0.00013932,2]
[404017802,1769729427204,-827.53341337,0.00013939,2]
[404017823,1769729431537,-372.46658663,0.00013939,2]
[404017824,1769729431547,-127.53341337,0.0001394,2]
[404017828,1769729431568,-172.46658663,0.0001394,2]
[404017830,1769729431577,-300.0,0.0001394,2]
[404017831,1769729431587,-300.0,0.0001394,2]
[404017833,1769729431597,-300.0,0.0001394,2]
[404017835,1769729431606,-1004.10457878,0.00013941,2]
[404017838,1769729431617,-6754.09542122,0.00013941,2]
[404017839,1769729431627,-881.63,0.00013966,2]
[404017842,1769729431637,-150.0,0.00013993,2]
[404017843,1769729431647,-1000.0,0.00013994,2]
[404017844,1769729431657,-1000.0,0.00013994,2]
[404017845,1769729431666,-1000.0,0.00013994,2]
[404017846,1769729431676,-1000.0,0.00013994,2]
[404017847,1769729431687,-1000.0,0.00013994,2]
[404017848,1769729431696,-1000.0,0.00013994,2]
[404017849,1769729431707,-1000.0,0.00013994,2]
[404017850,1769729431716,-1000.0,0.00013994,2]
[404017851,1769729431726,-881.63,0.00014009,2]
[404017852,1769729431742,-569.0,0.0001402,2]
[404017853,1769729431754,-881.63,0.00014053,2]
[404017854,1769729431765,-1000.0,0.00014078,2]
[404017855,1769729431777,-881.63,0.00014096,2]
[404017856,1769729431788,-881.63,0.0001414,2]
[404017857,1769729431800,-881.63,0.00014183,2]
[404017858,1769729431809,-344.2386728,0.00014208,2]
[404017859,1769729431819,-1000.0,0.00014221,2]
[404017861,1769729431829,-1000.0,0.00014221,2]
[404017862,1769729431838,-638.172,0.00014221,2]
[404017864,1769729431848,-1000.0,0.00014221,2]
[404017865,1769729431858,-1000.0,0.00014221,2]
[404017866,1769729431867,-1000.0,0.00014221,2]
[404017867,1769729431882,-1000.0,0.00014221,2]
[404017868,1769729431892,-1000.0,0.00014221,2]
[404017869,1769729431902,-1000.0,0.00014221,2]
[404017870,1769729431911,-881.63,0.00014226,2]
[404017871,1769729431921,-464.6,0.00014259,2]
[404017872,1769729431930,-881.63,0.0001427,2]
[404017873,1769729431940,-881.63,0.00014313,2]
[404017874,1769729431950,-881.63,0.00014357,2]
[404017875,1769729431959,-881.63,0.000144,2]
[404017876,1769729431968,-881.63,0.00014444,2]
[404017877,1769729431977,-463.0,0.00014658,2]
[404017878,1769729431986,-344.2386728,0.00014681,2]
[404017879,1769729431996,-500.0,0.00014694,2]
[404017880,1769729432005,-500.0,0.00014694,2]
[404017881,1769729432014,-849.0,0.00014694,2]
[404017882,1769729432024,-500.0,0.00014694,2]
[404017883,1769729432033,-150.0,0.00014694,2]
[404017884,1769729432043,-150.0,0.00014694,2]
[404017885,1769729432054,-567.0,0.00014694,2]
[404017886,1769729432063,-500.0,0.00014694,2]
[404017887,1769729432073,-500.0,0.00014694,2]
[404017888,1769729432083,-500.0,0.00014694,2]
[404017889,1769729432092,-500.0,0.00014694,2]
[404017890,1769729432102,-150.0,0.00014694,2]
[404017891,1769729432113,-150.0,0.00014694,2]
[404017892,1769729432123,-150.0,0.00014694,2]
[404017893,1769729432132,-500.0,0.00014749,2]
[404017894,1769729432142,-849.0,0.00014749,2]
[404017895,1769729432152,-500.0,0.00014749,2]
[404017896,1769729432162,-247.35480279,0.00014749,2]
[404017897,1769729432171,-567.0,0.00014749,2]
[404017898,1769729432180,-500.0,0.00014749,2]
[404017899,1769729432190,-500.0,0.00014749,2]
[404017900,1769729432200,-500.0,0.00014749,2]
[404017901,1769729432210,-500.0,0.00014749,2]
[404017902,1769729432221,-150.0,0.00014749,2]
[404017903,1769729432230,-150.0,0.00014781,2]
[404017904,1769729432240,-150.0,0.00014781,2]
[404017905,1769729432250,-500.0,0.00014781,2]
[404017906,1769729432259,-150.0,0.00014781,2]
[404017907,1769729432268,-500.0,0.00014781,2]
[404017908,1769729432277,-500.0,0.00014781,2]
[404017909,1769729432287,-150.0,0.00014781,2]
[404017910,1769729432296,-150.0,0.00014781,2]
[404017911,1769729432305,-150.0,0.00014781,2]
[404017912,1769729432314,-500.0,0.00014781,2]
[404017913,1769729432324,-500.0,0.00014781,2]
[404017914,1769729432333,-500.0,0.00014781,2]
[404017915,1769729432343,-229.5686788,0.00014781,2]
[404017916,1769729432352,-150.0,0.00014781,2]
[404017917,1769729432361,-151.27,0.00014783,2]
[404017918,1769729432371,-200.0,0.000148,5]
[404017919,1769729432381,-500.0,0.00014804,2]
[404017920,1769729432390,-849.0,0.00014804,2]
[404017921,1769729432399,-500.0,0.00014804,2]
[404017922,1769729432409,-567.0,0.00014804,2]
[404017923,1769729432418,-500.0,0.00014804,2]
[404017924,1769729432428,-500.0,0.00014804,2]
[404017925,1769729432438,-500.0,0.00014804,2]
[404017926,1769729432447,-500.0,0.00014804,2]
[404017927,1769729432456,-150.0,0.00014804,2]
[404017928,1769729432465,-172.36,0.00014804,2]
[404017929,1769729432474,-200.0,0.00014836,2]
[404017930,1769729432483,-239.88573265,0.00014836,2]
[404017931,1769729432493,-500.0,0.00014836,2]
[404017932,1769729432502,-500.0,0.00014836,2]
[404017933,1769729432512,-500.0,0.00014836,2]
[404017934,1769729432521,-150.0,0.00014836,2]
[404017935,1769729432531,-500.0,0.00014836,2]
[404017936,1769729432542,-500.0,0.00014836,2]
[404017937,1769729432551,-500.0,0.00014836,2]
[404017938,1769729432560,-150.0,0.00014836,2]
[404017939,1769729432569,-500.0,0.00014858,2]
[404017940,1769729432578,-849.0,0.00014858,2]
[404017941,1769729432588,-500.0,0.00014858,2]
[404017942,1769729432597,-567.0,0.00014858,2]
[404017943,1769729432606,-500.0,0.00014858,2]
[404017944,1769729432616,-500.0,0.00014858,2]
[404017945,1769729432625,-500.0,0.00014858,2]
[404017946,1769729432634,-150.0,0.00014858,2]
[404017947,1769729432644,-500.0,0.00014891,2]
[404017948,1769729432655,-171.51596019,0.00014891,2]
[404017949,1769729432665,-500.0,0.00014891,2]
[404017950,1769729432674,-150.0,0.00014891,2]
[404017951,1769729432683,-500.0,0.00014891,2]
[404017952,1769729432978,-500.0,0.00014891,2]
[404017953,1769729433000,-500.0,0.00014891,2]
[404017954,1769729433010,-150.0,0.00014891,2]
[404017955,1769729433019,-500.0,0.000149,5]
[404017956,1769729433029,-500.0,0.00014913,2]
[404017957,1769729433039,-849.0,0.00014913,2]
[404017958,1769729433048,-500.0,0.00014913,2]
[404017959,1769729433058,-567.0,0.00014913,2]
[404017960,1769729433067,-500.0,0.00014913,2]
[404017961,1769729433076,-150.0,0.00014913,2]
[404017962,1769729433086,-500.0,0.00014913,2]
[404017963,1769729433095,-150.0,0.00014913,2]
[404017964,1769729433105,-500.0,0.00014945,2]
[404017965,1769729433114,-500.0,0.00014945,2]
[404017966,1769729433123,-200.0,0.00014945,2]
[404017967,1769729433132,-500.0,0.00014945,2]
[404017968,1769729433141,-500.0,0.00014945,2]
[404017969,1769729433151,-500.0,0.00014945,2]
[404017970,1769729433160,-200.0,0.00014945,2]
[404017971,1769729433169,-384.45580405,0.00014968,2]
[404017972,1769729433178,-500.0,0.00014968,2]
[404017973,1769729433188,-849.0,0.00014968,2]
[404017974,1769729433197,-500.0,0.00014968,2]
[404017975,1769729433206,-567.0,0.00014968,2]
[404017976,1769729433215,-500.0,0.00014968,2]
[404017977,1769729433225,-500.0,0.00014968,2]
[404017978,1769729433235,-250.0,0.00014968,2]
[404017979,1769729433244,-151.0,0.00014983,2]
[404017980,1769729433254,-151.0,0.00014983,2]
[404017981,1769729433264,-151.0,0.00014983,2]
[404017982,1769729433274,-151.0,0.00014983,2]
[404017983,1769729433283,-500.0,0.00014983,2]
[404017984,1769729433292,-151.0,0.00014983,2]
[404017985,1769729433301,-500.0,0.00014983,2]
[404017986,1769729433311,-151.0,0.00014983,2]
[404017987,1769729433322,-151.0,0.00014983,2]
[404017988,1769729433331,-500.0,0.00014983,2]
[404017989,1769729433341,-500.0,0.00014983,2]
[404017990,1769729433350,-151.0,0.00014983,2]
[404017991,1769729433360,-500.0,0.00014983,2]
[404017992,1769729433370,-151.0,0.00014983,2]
[404017993,1769729433379,-500.0,0.00014983,2]
[404017994,1769729433389,-151.0,0.00014983,2]
[404017995,1769729433399,-500.0,0.00014983,2]
[404017996,1769729433409,-151.0,0.00014983,2]
[404017997,1769729433418,-500.0,0.00014983,2]
[404017998,1769729433428,-151.0,0.00014983,2]
[404017999,1769729433439,-500.0,0.00014983,2]
[404018000,1769729433449,-151.0,0.00014983,2]
[404018001,1769729433459,-500.0,0.00014983,2]
[404018002,1769729433468,-151.0,0.00014983,2]
[404018003,1769729433478,-500.0,0.00014983,2]
[404018004,1769729433488,-151.0,0.00014983,2]
[404018005,1769729433497,-151.0,0.00014983,2]
[404018006,1769729433507,-151.0,0.00014983,2]
[404018007,1769729433516,-151.0,0.00014983,2]
[404018008,1769729433526,-151.0,0.00014983,2]
[404018009,1769729433535,-200.0,0.00014983,2]
[404018010,1769729433544,-500.0,0.00014983,2]
[404018011,1769729433553,-151.0,0.00014983,2]
[404018012,1769729433563,-200.0,0.00014983,2]
[404018013,1769729433572,-151.0,0.00014983,2]
[404018014,1769729433581,-151.0,0.00014983,2]
[404018015,1769729433591,-151.0,0.00014983,2]
[404018016,1769729433600,-151.0,0.00014983,2]
[404018017,1769729433609,-151.0,0.00014983,2]
[404018018,1769729433619,-151.0,0.00014983,2]
[404018019,1769729433628,-151.0,0.00014983,2]
[404018020,1769729433637,-151.0,0.00014983,2]
[404018021,1769729433646,-151.0,0.00014983,2]
[404018022,1769729433657,-151.0,0.00014983,2]
[404018023,1769729433666,-151.0,0.00014983,2]
[404018024,1769729433675,-151.0,0.00014984,2]
[404018025,1769729433685,-1458.4587,0.00014987,2]
[404018026,1769729433694,-310.9805,0.00014987,2]
[404018027,1769729433703,-7317.75287047,0.00014987,2]
[404018028,1769729433718,-5432.0701728,0.00014987,2]
[404018029,1769729433735,-20661.1022082,0.00014987,2]
[404018030,1769729433785,-609.8984744,0.00014987,2]
[404018031,1769729437765,-333.27596216,0.00014891,2]
[404018032,1769729437779,-13149.02557413,0.00014987,2]
[404018033,1769729437788,-500.0,0.00014991,2]
[404018034,1769729437798,-500.0,0.00014991,2]
[404018035,1769729437807,-500.0,0.00014991,2]
[404018036,1769729437816,-500.0,0.00014991,2]
[404018037,1769729437826,-500.0,0.00014991,2]
[404018038,1769729437835,-500.0,0.00014991,2]
[404018039,1769729437845,-500.0,0.00014991,2]
[404018040,1769729437854,-500.0,0.00014991,2]
[404018041,1769729437863,-500.0,0.00014991,2]
[404018042,1769729437873,-500.0,0.00014991,2]
[404018043,1769729437881,-500.0,0.00014991,2]
[404018044,1769729437891,-500.0,0.00014991,2]
[404018045,1769729437900,-500.0,0.00014991,2]
[404018046,1769729437909,-500.0,0.00014991,2]
[404018047,1769729437918,-461.45103688,0.00014991,2]
[404018048,1769729437928,-500.0,0.00014991,2]
[404018050,1769729437937,-647.99788803,0.00014991,2]
[404018052,1769729437946,-268.98591086,0.00014991,2]
[404018053,1769729437956,-500.0,0.00014991,2]
[404018055,1769729437965,-500.0,0.00014991,2]
[404018057,1769729437974,-500.0,0.00014991,2]
[404018059,1769729437983,-500.0,0.00014991,2]
[404018061,1769729437993,-500.0,0.00014991,2]
[404018063,1769729438003,-500.0,0.00014991,2]
[404018065,1769729438011,-500.0,0.00014991,2]
[404018067,1769729438020,-183.9686329,0.00014991,2]
[404018069,1769729438029,-500.0,0.00014991,2]
[404018071,1769729438038,-500.0,0.00014991,2]
[404018073,1769729438048,-500.0,0.00014991,2]
[404018074,1769729438057,-500.0,0.00014991,2]
[404018076,1769729438066,-500.0,0.00014991,2]
[404018079,1769729438075,-500.0,0.00014991,2]
[404018081,1769729438085,-500.0,0.00014991,2]
[404018083,1769729438095,-500.0,0.00014991,2]
[404018084,1769729438105,-500.0,0.00014991,2]
[404018086,1769729438114,-500.0,0.00014991,2]
[404018089,1769729438124,-500.0,0.00014991,2]
[404018090,1769729438133,-500.0,0.00014991,2]
[404018091,1769729438143,-500.0,0.00014991,2]
[404018092,1769729438152,-500.0,0.00014991,2]
[404018093,1769729438161,-500.0,0.00014991,2]
[404018094,1769729438170,-500.0,0.00014991,2]
[404018095,1769729438179,-500.0,0.00014991,2]
[404018096,1769729438188,-500.0,0.00014991,2]
[404018097,1769729438197,-500.0,0.00014991,2]
[404018098,1769729438206,-500.0,0.00014991,2]
[404018099,1769729438215,-500.0,0.00014991,2]
[404018100,1769729438225,-500.0,0.00014991,2]
[404018101,1769729438234,-500.0,0.00014991,2]
[404018102,1769729438243,-500.0,0.00014991,2]
[404018103,1769729438253,-500.0,0.00014991,2]
[404018104,1769729438262,-500.0,0.00014991,2]
[404018105,1769729438271,-500.0,0.00014991,2]
[404018106,1769729438281,-500.0,0.00014991,2]
[404018107,1769729438290,-500.0,0.00014991,2]
[404018108,1769729438300,-500.0,0.00014991,2]
[404018109,1769729438309,-500.0,0.00014991,2]
[404018110,1769729438318,-500.0,0.00014991,2]
[404018111,1769729438327,-500.0,0.00014991,2]
[404018112,1769729438337,-500.0,0.00014991,2]
[404018113,1769729438346,-500.0,0.00014991,2]
[404018114,1769729438355,-500.0,0.00014991,2]
[404018115,1769729438365,-500.0,0.00014991,2]
[404018116,1769729438374,-500.0,0.00014991,2]
[404018117,1769729438384,-500.0,0.00014991,2]
[404018118,1769729438393,-500.0,0.00014991,2]
[404018119,1769729438402,-500.0,0.00014991,2]
[404018120,1769729438413,-500.0,0.00014991,2]
[404018121,1769729438422,-422.13866738,0.00014991,2]
[404018122,1769729438432,-500.0,0.00014991,2]
[404018123,1769729438441,-500.0,0.00014991,2]
[404018124,1769729438450,-500.0,0.00015,2]
[404018125,1769729438459,-500.0,0.00015,2]
[404018126,1769729438469,-500.0,0.00015,2]
[404018127,1769729438478,-500.0,0.00015,2]
[404018128,1769729438488,-500.0,0.00015,2]
[404018129,1769729438497,-500.0,0.00015023,2]
[404018130,1769729438507,-849.0,0.00015023,2]
[404018131,1769729438516,-553.40923612,0.00015023,2]
[404018132,1769729438525,-567.0,0.00015023,2]
[404018133,1769729438535,-500.0,0.00015023,2]
[404018134,1769729438545,-500.0,0.00015023,2]
[404018135,1769729438554,-150.0,0.00015042,2]
[404018136,1769729438564,-2432.44498612,0.0001505,2]
[404018137,1769729438573,-500.0,0.00015055,2]
[404018138,1769729438582,-500.0,0.00015055,2]
[404018139,1769729438592,-500.0,0.00015055,2]
[404018140,1769729438601,-500.0,0.00015055,2]
[404018141,1769729438611,-411.36246175,0.00015055,2]
[404018142,1769729438620,-150.0,0.00015055,2]
[404018143,1769729438630,-150.0,0.00015055,2]
[404018144,1769729438639,-150.0,0.00015055,2]
[404018145,1769729438649,-150.0,0.00015055,2]
[404018146,1769729438659,-150.0,0.00015055,2]
[404018147,1769729438668,-150.0,0.00015055,2]
[404018148,1769729438678,-150.0,0.00015055,2]
[404018149,1769729438687,-150.0,0.00015055,2]
[404018150,1769729438697,-150.0,0.00015055,2]
[404018151,1769729438707,-150.0,0.00015055,2]
[404018152,1769729438716,-150.0,0.00015055,2]
[404018153,1769729438726,-184.02,0.00015058,2]
[404018154,1769729438738,-4304.53405516,0.00015076,2]
[404018155,1769729438748,-250.0,0.00015076,2]
[404018156,1769729438757,-500.0,0.00015078,2]
[404018157,1769729438766,-849.0,0.00015078,2]
[404018158,1769729438776,-567.0,0.00015078,2]
[404018159,1769729438786,-500.0,0.00015078,2]
[404018160,1769729438795,-500.0,0.00015078,2]
[404018161,1769729438804,-1477.67,0.00015085,2]
[404018162,1769729438814,-591.48744175,0.00015086,2]
[404018163,1769729438823,-500.0,0.00015086,2]